Cogmind - Beta 14 @@@ ROGUE MODE // 2024.09.07 @ 11:40:51 Player: Finestep Result: Destroyed self with Grenade Launcher Performance ------------- Evolutions (0) 0 Regions Visited (2) 400 Robots Destroyed (33) 165 Value Destroyed (781) 781 Prototype IDs (2) 40 Alien Tech Used (0) 0 Bonus (0) 0 TOTAL SCORE: 1386 Bonus ------- None Cogmind --------- Core Integrity 0/250 Matter 243/300 Energy 100/100 System Corruption 0% Temperature Cool (0) Movement Walking (120) Location -10/Subcaves Parts ------- > --- POWER (1) -------- (None) > --- PROPULSION (2) --- Aluminum Leg Aluminum Leg > --- UTILITY (2) ------ Disposable Heat Sink Medium Storage Unit > --- WEAPON (2) ------- Grenade Launcher Grenade Launcher > --- INVENTORY (10) --- Aluminum Leg Aluminum Leg Aluminum Leg High-capacity Matter Pod (200) Transport Network Coupler Assault Rifle Light Assault Rifle Light Assault Rifle Slug Cannon Mining Laser Peak State ------------ > --- POWER ------------ Light Nuclear Core > --- PROPULSION ------- Aluminum Leg Aluminum Leg > --- UTILITY ---------- Disposable Heat Sink Medium Storage Unit > --- WEAPON ----------- Light Assault Rifle Slug Cannon > --- INVENTORY -------- Aluminum Leg Aluminum Leg Aluminum Leg High-capacity Matter Pod Transport Network Coupler Assault Rifle Light Assault Rifle Grenade Launcher Grenade Launcher Mining Laser [Rating: 14] Favorites ----------- Power Light Nuclear Core Engine Ion Engine Power Core Light Nuclear Core Propulsion Aluminum Leg Leg Aluminum Leg Wheel Wheel Utility Medium Storage Unit Device Seismic Detector Storage Medium Storage Unit Weapon Light Assault Rifle Ballistic Gun Light Assault Rifle Ballistic Cannon Slug Cannon Launcher Grenade Launcher Special Weapon Mining Laser Build | -11 -10 -10 ------- Run | Yrd Mat Sub Slots Evolved . | . . . Power . | . . . Propulsion . | . . . Utility . | . . . Weapon . | . . . Parts Attached 37 | 9 18 10 Power 4 | 1 3 . Engine 3 | 1 2 . Core 1 | . 1 . Reactor . | . . . Propulsion 12 | 4 7 1 Treads . | . . . Leg 10 | 2 7 1 Wheel 2 | 2 . . Hover . | . . . Flight . | . . . Utility 5 | 2 1 2 Device 3 | 1 . 2 Storage 2 | 1 1 . Processor . | . . . Hackware . | . . . Protection . | . . . Artifact . | . . . Weapon 16 | 2 7 7 Energy Gun . | . . . Energy Cannon . | . . . Ballistic Gun 9 | 2 5 2 Ballistic Cannon 1 | . . 1 Launcher 5 | . 1 4 Special Weapon 1 | . 1 . Impact Weapon . | . . . Slashing Weapon . | . . . Piercing Weapon . | . . . Special Melee Weapon . | . . . Unidentified Prototypes . | . . . Parts Lost 3 | . 1 2 Power 2 | . 1 1 Propulsion . | . . . Utility 1 | . . 1 Weapon . | . . . Highest Loss Streak 1 | . 1 1 To Critical Strikes . | . . . Average Slot Usage (%) 95 | . 100 92 Engine 4 | . 12 . Core 9 | . 1 14 Leg 28 | . 28 28 Device 9 | . 14 7 Storage 14 | . 14 14 Ballistic Gun 22 | . 27 20 Ballistic Cannon 1 | . . 2 Launcher 3 | . . 5 Peak Build Rating 14 | 7 10 14 Average Rating 9 | 5 7 10 On Entrance 5 | . 7 10 Naked Turns . | . . . Heaviest Build 24 | 11 18 24 Greatest Support 20 | 20 20 20 Greatest Overweight (x) 1 | 1 . 1 Average Overweight (x) . | . . . Largest Inventory Capacity 10 | 8 10 10 Average Capacity 9 | 7 9 10 Most Carried 10 | 7 10 10 Average Carried 9 | 4 8 9 Final Capacity 10 | 8 10 10 Final Carried 10 | 7 10 10 Class Distribution -------------------- 90% | Scavenger-Mutant 9% | Mutant Dominant Class ---------------- Scavenger-Mutant | -10/Materials Scavenger-Mutant | -10/Subcaves Resources | -11 -10 -10 ----------- Run | Yrd Mat Sub Matter Collected 1082 | 278 372 432 Remotely . | . . . Salvage Created 1048 | 103 678 267 Parts 84 | 8 59 17 Haulers Intercepted 2 | . 2 . Recyclers Shooed 1 | . 1 . Parts Field Recycled . | . . . Retrieved Matter . | . . . Parts Self-Destructed 10 | . . 10 Prevented . | . . . Kills | -11 -10 -10 ------- Run | Yrd Mat Sub Combat Hostiles Destroyed 24 | . 14 10 Guns 14 | . 11 3 AOE 10 | . 3 7 Classes Destroyed 9 | 2 5 2 Builder 1 | . 1 . Tunneler 2 | 2 . . Hauler 2 | . 2 . Recycler 2 | 1 1 . Watcher 2 | . 2 . Swarmer 7 | . 3 4 Grunt 12 | . 11 1 Artisan 1 | . . 1 Subdweller 5 | . . 5 Best Kill Streak 5 | 2 5 4 Combat Bots Only 5 | . 5 4 Max Kills in Single Turn 4 | 1 2 4 Gunslinging . | . . . Exploded 4 | . 2 4 Melee . | . . . Uniques/NPCs Destroyed . | . . . Combat | -11 -10 -10 -------- Run | Yrd Mat Sub Hostile Shots Fired 101 | . 66 35 Missed 31 | . 17 14 Damage Taken 1041 | . 624 417 Core 258 | . 119 139 Absorbed by Shields . | . . . Core Remaining (%) 100 | 100 . . Volleys Fired 119 | 8 87 24 Largest 2 | 2 2 2 Hottest 100 | 40 100 60 Shots Fired 228 | 16 166 46 Gun 204 | 16 158 30 Cannon . | . . . Launcher 18 | . 2 16 Special 6 | . 6 . Kinetic 204 | 16 158 30 Thermal 6 | . 6 . Explosive 18 | . 2 16 Electromagnetic . | . . . Robot Hit Streak 17 | 5 9 17 Robot Miss Streak 5 | 1 5 2 Penetration Max . | . . . Secondary Targets . | . . . Shots Hit Robots 136 | 12 102 22 Core Hits 70 | 6 45 19 Critical Kills . | . . . Critical Parts Destroyed . | . . . Critical Strikes . | . . . Melee Attacks . | . . . Impact . | . . . Slashing . | . . . Piercing . | . . . Sneak Attacks . | . . . Combat Hostiles . | . . . Follow-up Attacks . | . . . Damage Inflicted 1838 | 98 1050 690 Guns 1092 | 98 833 161 Cannons . | . . . Explosions 722 | . 193 529 Melee . | . . . Ramming . | . . . Kinetic 1092 | 98 833 161 Thermal 24 | . 24 . Explosive 722 | . 193 529 Electromagnetic . | . . . Impact . | . . . Slashing . | . . . Piercing . | . . . Highest Corruption . | . . . Average Corruption . | . . . Corruption Purged . | . . . Corruption Blocked . | . . . Overload Shots . | . . . Overflow Damage 16 | . 16 . Projectiles 4 | . 4 . Explosions 12 | . 12 . Melee . | . . . Knockbacks . | . . . Impact . | . . . Kinetic . | . . . Secondary . | . . . Self-Inflicted Damage 79 | . . 79 Shots 4 | . . 4 Rammed . | . . . Targets Rammed . | . . . Kicked . | . . . Crushed . | . . . Highest Temperature 152 | . 152 . Average Temperature 32 | . 32 . Received Heat Transfer 462 | . 336 126 Siege Activations . | . . . Robots Corrupted . | . . . Combat Hostiles . | . . . Parts Fried . | . . . Impact Corruptions . | . . . Robots Melted . | . . . Combat Hostiles . | . . . Parts Melted . | . . . Heat Transferred 50 | . 50 . Parts Sabotaged . | . . . Parts Stolen . | . . . Parts Stripped . | . . . Power Chain Reactions . | . . . Alert | -11 -10 -10 ------- Run | Yrd Mat Sub Peak Influence 250 | 15 250 . Initial 9 | . 9 . Average 135 | 7 144 . Maximum Alert Level 1 | . 1 . Low Security (%) 69 | 100 67 . Level 1 30 | . 32 . Level 2 . | . . . Level 3 . | . . . Level 4 . | . . . Level 5 . | . . . High Security . | . . . Max Security . | . . . Squads Dispatched 4 | . 4 . Investigation 3 | . 3 . Extermination . | . . . Reinforcement 1 | . 1 . Assault . | . . . Garrison . | . . . Intercept . | . . . Searches Triggered . | . . . Construction Impeded . | . . . Haulers Reinforced . | . . . Active Scanning Responses . | . . . Cargo Convoy Interrupts . | . . . Stealth | -11 -10 -10 --------- Run | Yrd Mat Sub Distress Signals 1 | . 1 . Communications Jammed . | . . . Distress Signals . | . . . Times Spotted 34 | . 20 14 Peak Tracking Total 4 | . 3 4 Tactical Retreats 3 | . . 3 Traps | -11 -10 -10 ------- Run | Yrd Mat Sub Traps Triggered . | . . . Indirectly . | . . . Trap Hack Attempts . | . . . Triggered . | . . . Disarmed . | . . . Reprogrammed . | . . . Reused . | . . . Traps Extracted . | . . . Installed . | . . . Triggered . | . . . Machines | -11 -10 -10 ---------- Run | Yrd Mat Sub Machines Disabled 1 | . 1 . Max in Single Turn 1 | . 1 . Machines Repaired . | . . . Machines Dismantled . | . . . Machines Sabotaged . | . . . Overloaded Fab Kills . | . . . Hacking | -11 -10 -10 --------- Run | Yrd Mat Sub Machines Accessed 11 | . 8 3 Terminals 6 | . 6 . Fabricators . | . . . Repair Stations . | . . . Recycling Units 2 | . 2 . Scanalyzers . | . . . Garrison Access . | . . . Total Hacks 29 | . 22 7 Successful 15 | . 8 7 Failed 14 | . 14 . Catastrophic 2 | . 2 . Database Lockouts . | . . . Manual 10 | . 10 . Terminals 14 | . 14 . Fabricators . | . . . Repair Stations . | . . . Recycling Units 8 | . 8 . Scanalyzers . | . . . Garrison Access . | . . . Terminal Hacks 13 | . 6 7 Record 5 | . . 5 Robot Schematic 1 | . 1 . Prototype ID Bank 1 | . 1 . Open Door 1 | . . 1 Branch Access Points 1 | . 1 . Locate Traps 1 | . 1 . Registered Prototypes 1 | . 1 . Zone Layout 1 | . 1 . Release Object 1 | . . 1 Fabricator Hacks . | . . . Repair Station Hacks . | . . . Recycling Unit Hacks 1 | . 1 . Retrieve Components 1 | . 1 . Scanalyzer . | . . . Garrison Access Hacks . | . . . Unauthorized Hacks . | . . . Terminals . | . . . Fabricators . | . . . Repair Stations . | . . . Recycling Units . | . . . Scanalyzers . | . . . Garrison Access . | . . . Data Cores Recovered . | . . . Used . | . . . Hacking Detections 8 | . 8 . Full Trace Events 3 | . 3 . Feedback Events . | . . . Feedback Blocked . | . . . Robot Schematics Acquired 1 | . 1 . Robots Built . | . . . Authchips . | . . . Time . | . . . Total Robot Build Rating . | . . . Part Schematics Acquired . | . . . Parts Built . | . . . Authchips . | . . . Time . | . . . Total Part Build Rating . | . . . Parts Repaired . | . . . Time . | . . . Parts Recycled . | . . . Recycled Matter . | . . . Retrieved Matter . | . . . Retrieved Components 3 | . 3 . Parts Scanalyzed . | . . . Part Schematics Acquired . | . . . Parts Damaged . | . . . Bothacking | -11 -10 -10 ------------ Run | Yrd Mat Sub Used RIF Installer . | . . . Robots Hacked . | . . . Non-combat . | . . . Combat . | . . . Robot Hacks Applied . | . . . Relay Couplers Released . | . . . Fabnet Peak Effective % . | . . . Robots Rewired . | . . . Allies Hacked . | . . . Hacks Repelled . | . . . Allies | -11 -10 -10 -------- Run | Yrd Mat Sub Total Allies . | . . . Largest Group . | . . . Highest-Rated Group . | . . . Highest-Rated Ally . | . . . Total Orders . | . . . Ally Attacks . | . . . Total Damage . | . . . Kills . | . . . Allies Corrupted . | . . . Allies Melted . | . . . Intel | -11 -10 -10 ------- Run | Yrd Mat Sub Robot Analysis Total . | . . . Derelict Logs Recovered 1 | . . 1 Drone Launches . | . . . Drone Recoveries . | . . . Exploration | -11 -10 -10 ------------- Run | Yrd Mat Sub Turns Passed 3878 | 99 1373 2406 Spaces Moved 2251 | 55 738 1458 Core 4 | 4 . . Treads . | . . . Legs 2232 | 36 738 1458 Wheels 15 | 15 . . Hover . | . . . Flight . | . . . Fastest Speed 50 | 50 120 120 Average Speed 133 | 106 120 141 Slowest Speed 190 | 120 120 190 Overloaded Moves . | . . . Propulsion Burnouts . | . . . Robots Hopped . | . . . Cave-ins Triggered . | . . . Exploration Rate (%) 46 | 3 90 46 Regions Visited 2 Branch Regions 1 Pre-discovered Areas 1 | . . 1 Known Exits Taken . | . . . Unknown Exits Taken 2 | 1 1 . Scrap Searched . | . . . Spaces Dug 21 | . . 21 Terrain Destroyed 98 | . 9 89 Melee . | . . . Projectile . | . . . AOE 98 | . 9 89 Terrain Rammed . | . . . Walls Destroyed . | . . . Machines Disabled . | . . . Actions | -11 -10 -10 --------- Run | Yrd Mat Sub Total 2924 | 78 1087 1759 Wait 473 | . 212 261 Move 2249 | 54 737 1458 Hop . | . . . Pick Up 20 | 7 12 1 Fast Attach 12 | 7 2 3 Attach 1 | . 1 . Detach . | . . . Swap 24 | 2 15 7 Drop 25 | . 21 4 Fire 119 | 8 87 24 Melee . | . . . Ram . | . . . Kick . | . . . Crush . | . . . Escape Stasis . | . . . Rewire . | . . . Trap . | . . . Miscellaneous 1 | . . 1 Route ------- -11/Scrapyard -10/Materials (discovered 5 exits: [*Mat x3] / *Min / *Sub) -10/Subcaves (discovered 3 exits: *Mat x2 / *Rec) History --------- Turn | Location | Event 14 | -11/Scrapyard | Discovered new exit (range 14) 100 | -11/Scrapyard | Entered Materials 315 | -10/Materials | Build established: Mutant 467 | -10/Materials | Discovered new exit (range 10) 497 | -10/Materials | Discovered new exit (range 13) 680 | -10/Materials | Build established: Scavenger-Mutant 689 | -10/Materials | Identified exit to Mines 726 | -10/Materials | Discovered new exit (range 16) 1154 | -10/Materials | Discovered new exit (range 13) 1458 | -10/Materials | Discovered new exit (range 6) 1473 | -10/Materials | Entered Subcaves 1518 | -10/Subcaves | Learned Materials emergency access door positions 1590 | -10/Subcaves | Learned location of Zion (-6) 1590 | -10/Subcaves | Met a Zionite searching for "candidates" 1615 | -10/Subcaves | Core integrity fell below 50% 2443 | -10/Subcaves | Released subatomizers from SUBCON Basin 2729 | -10/Subcaves | Visited Clippyterm 2733 | -10/Subcaves | Identified exit to Materials 2733 | -10/Subcaves | Identified exit to Recycling 2733 | -10/Subcaves | Learned Factory trap positions 3188 | -10/Subcaves | Core integrity fell below 20% 3879 | -10/Subcaves | Destroyed self with Grenade Launcher Last Messages --------------- 03195_ Acquired 39 matter. 03201_ Acquired 12 matter. 03212_ Acquired 49 matter. 03214_ Subatomizers dissect the Sub. Power Source. 03215_ Acquired Disposable Heat Sink. 03227_ Acquired 36 matter. 03230_ Acquired 18 matter. 03235_ Dropped Lgt. Assault Rifle. 03237_ Acquired Slug Cannon. 03240_ Acquired 10 matter. 03429_ Subatomizers dissect the Sub. Laser. 03741_ Acquired 15 matter. 03753_ Acquired 5 matter. 03758_ S-10 Pest destroyed. 03772_ The unstable cave ceiling collapses. 03776_ Lgt. Ion Engine fries itself beyond repair. 03786_ The unstable cave ceiling collapses. 03787_ Acquired 8 matter. 03876_ Lgt. Nuclear Core destroyed. 03879_ The unstable cave ceiling collapses. Map ----- +----------------------------------------------------+ | ?????????????????????????????????????????????????? | | ?????????????????????????????????????????????????? | | ?????????????????????????????????????????????????? | | ?????????????????????????????????????????????????? | | ?????????????????????????????????????????????????? | | ?????????????????????????????????????????????????? | | ?????????????????????????????????????????????????? | | ?????????????????????????????????????????????????? | | ?????????????????????????????????????????????????? | | ?????????????????????????????????????????????????? | | ?????????????????????????????????????????????????? | | ????????????????????????"????????????????????????? | | ??????????????????????"R